fUSD/lending_fUSD_20250730
["ID","MTS","AMOUNT","RATE_DAILY","PERIOD"]
[376040385,1753834242066,-1512.78,0.00016878,2]
[376040387,1753834242076,-523.74,0.00016878,2]
[376040389,1753834242086,-400.0,0.00016878,2]
[376040391,1753834242096,-1595.73,0.00016878,2]
[376040393,1753834242105,-406.59,0.00016878,2]
[376040395,1753834242115,-772.04,0.00016878,2]
[376040397,1753834242126,-400.0,0.00016878,2]
[376040399,1753834242135,-636.59,0.00016878,2]
[376040401,1753834242145,-666.75,0.00016878,2]
[376040403,1753834242156,-400.0,0.00016878,2]
[376040405,1753834242166,-1221.71,0.00016878,2]
[376040407,1753834242176,-400.0,0.00016878,2]
[376040409,1753834242190,-605.18,0.00016878,2]
[376040412,1753834242201,-2060.52,0.00016878,2]
[376040414,1753834242211,-491.4,0.00016878,2]
[376040416,1753834242220,-1236.13,0.00016878,2]
[376040417,1753834242229,-400.0,0.00016878,2]
[376040419,1753834242240,-566.56,0.00016878,2]
[376040421,1753834242250,-636.08,0.00016878,2]
[376040424,1753834242259,-3837.06,0.00016878,2]
[376040426,1753834242270,-576.35,0.00016878,2]
[376040428,1753834242280,-400.0,0.00016878,2]
[376040430,1753834242290,-400.0,0.00016878,2]
[376040432,1753834242299,-423.1,0.00016878,2]
[376040434,1753834242309,-888.51,0.00016878,2]
[376040436,1753834242319,-3086.75,0.00016878,2]
[376040438,1753834242329,-432.28,0.00016878,2]
[376040440,1753834242338,-430.62,0.00016878,2]
[376040442,1753834242347,-993.73,0.00016878,2]
[376040444,1753834242357,-460.26,0.00016878,2]
[376040446,1753834242366,-800.39,0.00016878,2]
[376040447,1753834242376,-1131.61,0.00016878,2]
[376040449,1753834242386,-400.0,0.00016878,2]
[376040452,1753834242396,-449.33,0.00016878,2]
[376040454,1753834242405,-811.81,0.00016878,2]
[376040456,1753834242415,-400.0,0.00016878,2]
[376040459,1753834242424,-557.51,0.00016878,2]
[376040461,1753834242436,-618.96,0.00016878,2]
[376040462,1753834242446,-400.0,0.00016878,2]
[376040465,1753834242455,-2297.7,0.00016878,2]
[376040468,1753834242464,-4042.51,0.00016878,2]
[376040471,1753834242474,-2355.49,0.00016878,2]
[376040475,1753834242484,-2771.29,0.00016878,2]
[376040477,1753834242493,-400.0,0.00016878,2]
[376040479,1753834242504,-2003.29,0.00016878,2]
[376040481,1753834242514,-2504.58,0.00016878,2]
[376040483,1753834242523,-400.0,0.00016878,2]
[376040485,1753834242533,-1268.72,0.00016878,2]
[376040487,1753834242543,-1378.11,0.00016878,2]
[376040489,1753834242552,-482.97,0.00016878,2]
[376040491,1753834242562,-353.1206375,0.00016878,2]
[376040493,1753834242571,-710.62,0.00016878,2]
[376040495,1753834242582,-942.64,0.00016878,2]
[376040497,1753834242592,-511.4,0.00016878,2]
[376040499,1753834242602,-551.19,0.00016878,2]
[376040501,1753834242611,-519.83,0.00016878,2]
[376040503,1753834242620,-2939.21,0.00016878,2]
[376040505,1753834242630,-400.0,0.00016878,2]
[376040507,1753834242640,-669.55,0.00016878,2]
[376040510,1753834242654,-400.0,0.00016878,2]
[376040512,1753834242665,-436.84,0.00016878,2]
[376040514,1753834242674,-547.62,0.00016878,2]
[376040515,1753834242683,-681.12,0.00016878,2]
[376040517,1753834242693,-463.58,0.00016878,2]
[376040520,1753834242702,-400.0,0.00016878,2]
[376040522,1753834242712,-4018.45,0.00016878,2]
[376040523,1753834242721,-400.0,0.00016878,2]
[376040526,1753834242731,-1403.53,0.00016878,2]
[376040528,1753834242741,-400.0,0.00016878,2]
[376040530,1753834242750,-3409.35,0.00016878,2]
[376040532,1753834242759,-1337.09,0.00016878,2]
[376040533,1753834242768,-1804.15,0.00016878,2]
[376040534,1753834242781,-1091.68,0.00016878,2]
[376040535,1753834242792,-463.67,0.00016878,2]
[376040536,1753834242802,-400.0,0.00016878,2]
[376040537,1753834242812,-954.47,0.00016878,2]
[376040538,1753834242822,-822.5,0.00016878,2]
[376040539,1753834242833,-538.72,0.00016878,2]
[376040540,1753834242843,-888.34,0.00016878,2]
[376040541,1753834242854,-2506.01,0.00016878,2]
[376040542,1753834242865,-400.0,0.00016878,2]
[376040543,1753834242875,-629.73,0.00016878,2]
[376040545,1753834242886,-2165.84,0.00016878,2]
[376040547,1753834242896,-2052.12,0.00016878,2]
[376040549,1753834242906,-400.0,0.00016878,2]
[376040551,1753834242916,-1160.92,0.00016878,2]
[376040553,1753834242927,-978.09,0.00016878,2]
[376040555,1753834242937,-400.0,0.00016878,2]
[376040557,1753834242947,-664.13,0.00016878,2]
[376040559,1753834242958,-1171.72,0.00016878,2]
[376040561,1753834242968,-1458.38,0.00016878,2]
[376040564,1753834242979,-983.89,0.00016878,2]
[376040566,1753834242990,-400.0,0.00016878,2]
[376040569,1753834243000,-1221.45,0.00016878,2]
[376040572,1753834243010,-1854.02,0.00016878,2]
[376040575,1753834243020,-590.73,0.00016878,2]
[376040577,1753834243031,-1730.01,0.00016878,2]
[376040580,1753834243042,-599.39,0.00016878,2]
[376040583,1753834243052,-400.0,0.00016878,2]
[376040586,1753834243062,-400.0,0.00016878,2]
[376040589,1753834243072,-400.0,0.00016878,2]
[376040592,1753834243086,-1207.21,0.00016878,2]
[376040596,1753834243097,-1152.9,0.00016878,2]
[376040599,1753834243107,-1037.12,0.00016878,2]
[376040602,1753834243118,-442.9,0.00016878,2]
[376040604,1753834243127,-424.96,0.00016878,2]
[376040606,1753834243138,-1228.78,0.00016878,2]
[376040608,1753834243148,-400.0,0.00016878,2]
[376040610,1753834243158,-400.0,0.00016878,2]
[376040612,1753834243169,-959.7,0.00016878,2]
[376040614,1753834243179,-2331.08,0.00016878,2]
[376040616,1753834243193,-485.09,0.00016878,2]
[376040619,1753834243204,-2740.44,0.00016878,2]
[376040621,1753834243214,-610.4,0.00016878,2]
[376040623,1753834243224,-713.33,0.00016878,2]
[376040625,1753834243235,-1932.52,0.00016878,2]
[376040627,1753834243245,-433.7,0.00016879,2]
[376040629,1753834243255,-1363.26,0.00016879,2]
[376040631,1753834243266,-441.86,0.00016879,2]
[376040633,1753834243275,-1050.29,0.00016879,2]
[376040635,1753834243285,-1865.12,0.00016879,2]
[376040637,1753834243296,-5221.57,0.00016879,2]
[376040639,1753834243306,-1299.81,0.00016879,2]
[376040641,1753834243316,-515.64,0.00016879,2]
[376040643,1753834243326,-1092.41,0.00016879,2]
[376040645,1753834243336,-431.84,0.00016879,2]
[376040648,1753834243346,-518.32,0.00016879,2]
[376040650,1753834243357,-400.0,0.00016879,2]
[376040652,1753834243367,-807.49,0.00016879,2]
[376040654,1753834243378,-571.07,0.00016879,2]
[376040656,1753834243388,-594.5,0.00016879,2]
[376040658,1753834243398,-400.0,0.00016879,2]
[376040660,1753834243408,-400.0,0.00016879,2]
[376040662,1753834243419,-792.7,0.00016879,2]
[376040665,1753834243429,-400.0,0.00016879,2]
[376040667,1753834243440,-400.0,0.00016879,2]
[376040669,1753834243450,-810.82,0.00016879,2]
[376040671,1753834243460,-400.0,0.00016879,2]
[376040673,1753834243470,-469.43,0.00016879,2]
[376040675,1753834243479,-827.9,0.00016879,2]
[376040677,1753834243490,-1096.52,0.00016879,2]
[376040679,1753834243500,-400.0,0.00016879,2]
[376040681,1753834243510,-548.4,0.00016879,2]
[376040683,1753834243520,-400.0,0.00016879,2]
[376040685,1753834243531,-400.0,0.00016879,2]
[376040687,1753834243542,-767.31,0.00016879,2]
[376040689,1753834243552,-1300.67209955,0.00016879,2]
[376040738,1753834244025,-2213.25790045,0.00016879,2]
[376040740,1753834244035,-414.08,0.00016879,2]
[376040742,1753834244045,-400.0,0.00016879,2]
[376040744,1753834244055,-1464.26,0.00016879,2]
[376040746,1753834244065,-3947.33,0.00016879,2]
[376040748,1753834244075,-360.90292591,0.00016879,2]
[376040942,1753834245999,-1876.90259182,0.00015681,2]
[376040944,1753834246009,-175.32691758,0.00016603,3]
[376040946,1753834246021,-412.67308242,0.00016603,3]
[376040948,1753834246031,-588.0,0.00016603,3]
[376040950,1753834246041,-588.0,0.00016603,3]
[376040952,1753834246052,-588.0,0.00016603,3]
[376040954,1753834246062,-400.0,0.00016604,2]
[376040955,1753834246072,-400.0,0.00016604,2]
[376040956,1753834246082,-2074.76,0.00016605,2]
[376040957,1753834246094,-256.86,0.00016878,2]
[376040958,1753834246104,-492.68,0.00016878,2]
[376040959,1753834246114,-97.59707409,0.00016879,2]
[376040960,1753834246124,-153.38217371,0.00016879,2]
[376040966,1753834246278,-500.0,0.00016879,2]
[376040968,1753834246290,-497.76782629,0.00016879,2]
[376040971,1753834246302,-463.28266431,0.00016879,2]
[376040987,1753834246454,-588.0,0.00016603,3]
[376040989,1753834246465,-272.0,0.00016603,2]
[376040991,1753834246477,-128.0,0.00016603,2]
[376040993,1753834246486,-319.69684913,0.00016877,2]
[376040996,1753834246498,-80.30315087,0.00016877,2]
[376040997,1753834246508,-1351.79733569,0.00016879,2]
[376040999,1753834246518,-662.39,0.00016879,2]
[376041001,1753834246528,-966.74,0.00016879,2]
[376041003,1753834246538,-9604.74,0.00016879,2]
[376041005,1753834246548,-1855.18,0.00016879,2]
[376041007,1753834246558,-1824.53,0.00016879,2]
[376041009,1753834246567,-1983.9,0.00016879,2]
[376041011,1753834246577,-883.69,0.00016879,2]
[376041013,1753834246587,-8581.36,0.00016879,2]
[376041015,1753834246597,-1801.98,0.00016879,2]
[376041017,1753834246607,-1114.99,0.00016879,2]
[376041019,1753834246617,-989.72,0.00016879,2]
[376041021,1753834246627,-818.44,0.00016879,2]
[376041023,1753834246636,-1248.4,0.00016879,2]
[376041025,1753834246646,-2588.23,0.00016879,2]
[376041027,1753834246657,-1458.46,0.00016879,2]
[376041029,1753834246666,-1418.27,0.00016879,2]
[376041031,1753834246676,-1318.09,0.00016879,2]
[376041033,1753834246687,-1394.15,0.00016879,2]
[376041035,1753834246697,-2074.76,0.00016879,2]
[376041037,1753834246707,-1979.64,0.0001688,2]
[376041039,1753834246717,-506.82,0.0001688,2]
[376041041,1753834246727,-2665.13,0.0001688,2]
[376041043,1753834246738,-1452.65,0.0001688,2]
[376041045,1753834246748,-1277.7,0.0001688,2]
[376041047,1753834246758,-2525.99,0.0001688,2]
[376041050,1753834246769,-534.0,0.0001688,2]
[376041052,1753834246779,-400.0,0.0001688,2]
[376041054,1753834246788,-868.38,0.0001688,2]
[376041055,1753834246798,-637.68,0.0001688,2]
[376041058,1753834246808,-400.0,0.0001688,2]
[376041060,1753834246817,-1578.08,0.0001688,2]
[376041062,1753834246827,-2772.82804302,0.00016881,2]
[376041063,1753834246837,-4335.73295486,0.00016899,2]
[376041065,1753834246846,-2478.98855996,0.000169,2]
[376041067,1753834246856,-840.71185276,0.00016923,2]
[376041069,1753834246867,-456.77176196,0.00016923,2]
[376041071,1753834246878,-211.20618774,0.00016923,2]
[376041073,1753834246887,-160.0,0.00016923,2]
[376041075,1753834246897,-195.5388247,0.00016938,2]
[376041077,1753834246907,-500.0,0.0001694,2]
[376041079,1753834246917,-168.0,0.0001694,2]
[376041088,1753834246992,-2478.98855983,0.00016969,2]
[376041090,1753834247002,-165364.66572298,0.00017,2]
[376041092,1753834247012,-250.0,0.00017,7]
[376041094,1753834247021,-588.0,0.00017,3]
[376041096,1753834247031,-2478.98855983,0.00017038,2]
[376041098,1753834247040,-2772.82804302,0.00017069,2]
[376041100,1753834247049,-668.5,0.00017096,2]
[376041102,1753834247060,-1243.04,0.00017096,2]
[376041104,1753834247070,-500.0,0.000171,2]
[376041106,1753834247079,-28608.35,0.000171,2]
[376041108,1753834247089,-588.0,0.00017104,3]
[376041110,1753834247099,-2478.98855983,0.00017107,2]
[376041112,1753834247109,-891.0,0.00017141,2]
[376041114,1753834247119,-1168.0,0.00017141,2]
[376041116,1753834247129,-4706.676,0.00017141,2]
[376041118,1753834247138,-4133.0,0.00017141,2]
[376041120,1753834247148,-21398.0,0.00017141,2]
[376041122,1753834247158,-864.0,0.00017141,2]
[376041124,1753834247167,-400.0,0.00017151,2]
[376041126,1753834247177,-400.0,0.00017151,2]
[376041128,1753834247188,-400.0,0.00017151,2]
[376041130,1753834247199,-400.0,0.00017151,2]
[376041132,1753834247208,-400.0,0.00017152,2]
[376041134,1753834247217,-400.0,0.00017152,2]
[376041136,1753834247227,-886.716118,0.00017152,2]
[376041138,1753834247237,-1138.421571,0.00017152,2]
[376041140,1753834247247,-1145.627229,0.00017152,2]
[376041142,1753834247256,-400.0,0.00017152,2]
[376041144,1753834247268,-400.0,0.00017152,2]
[376041146,1753834247277,-400.0,0.00017152,2]
[376041148,1753834247287,-400.0,0.00017152,2]
[376041150,1753834247296,-400.0,0.00017152,2]
[376041152,1753834247305,-404.89,0.00017152,2]
[376041154,1753834247315,-400.0,0.00017152,2]
[376041156,1753834247323,-400.0,0.00017152,2]
[376041158,1753834247333,-336.51,0.00017152,2]
[376041160,1753834247342,-421.0,0.00017152,2]
[376041162,1753834247352,-400.0,0.00017152,2]
[376041164,1753834247362,-400.0,0.00017152,2]
[376041166,1753834247371,-400.0,0.00017152,2]
[376041168,1753834247381,-400.0,0.00017152,2]
[376041170,1753834247390,-400.0,0.00017152,2]
[376041172,1753834247401,-400.0,0.00017152,2]
[376041174,1753834247410,-400.0,0.00017152,2]
[376041176,1753834247419,-405.97,0.00017152,2]
[376041178,1753834247428,-616.37,0.00017152,2]
[376041180,1753834247439,-271.99,0.00017152,2]
[376041182,1753834247448,-449.23,0.00017152,2]
[376041184,1753834247458,-593.85,0.00017152,2]
[376041186,1753834247468,-400.0,0.00017152,2]
[376041188,1753834247477,-400.0,0.00017152,2]
[376041190,1753834247487,-512.85,0.00017152,2]
[376041192,1753834247496,-400.0,0.00017152,2]
[376041194,1753834247505,-493.32,0.00017152,2]
[376041196,1753834247515,-494.6,0.00017152,2]
[376041198,1753834247524,-400.0,0.00017152,2]
[376041200,1753834247534,-400.0,0.00017152,2]
[376041202,1753834247543,-400.0,0.00017152,2]
[376041204,1753834247553,-400.0,0.00017152,2]
[376041206,1753834247562,-400.0,0.00017152,2]
[376041208,1753834247572,-197.87,0.00017152,2]
[376041210,1753834247581,-507.46,0.00017152,2]
[376041212,1753834247590,-400.0,0.00017152,2]
[376041214,1753834247599,-400.0,0.00017152,2]
[376041216,1753834247609,-400.0,0.00017152,2]
[376041218,1753834247618,-400.0,0.00017152,2]
[376041220,1753834247628,-400.0,0.00017152,2]
[376041222,1753834247638,-400.0,0.00017152,2]
[376041224,1753834247648,-400.0,0.00017152,2]
[376041226,1753834247657,-631.77,0.00017152,2]
[376041228,1753834247667,-400.0,0.00017152,2]
[376041230,1753834247678,-400.0,0.00017152,2]
[376041232,1753834247688,-400.0,0.00017152,2]
[376041234,1753834247698,-400.0,0.00017152,2]
[376041236,1753834247708,-400.0,0.00017152,2]
[376041238,1753834247717,-483.44624585,0.00017152,2]
[376041240,1753834247731,-400.0,0.00017152,2]
[376041242,1753834247741,-456.26,0.00017152,2]
[376041244,1753834247750,-400.0,0.00017152,2]
[376041246,1753834247760,-400.0,0.00017152,2]
[376041248,1753834247769,-400.0,0.00017152,2]
[376041250,1753834247779,-400.0,0.00017152,2]
[376041252,1753834247788,-577.06,0.00017152,2]
[376041254,1753834247797,-467.87,0.00017152,2]
[376041256,1753834247806,-695.61,0.00017152,2]
[376041258,1753834247815,-400.0,0.00017152,2]
[376041260,1753834247824,-532.98,0.00017152,2]
[376041262,1753834247834,-499.09,0.00017152,2]
[376041264,1753834247843,-400.0,0.00017152,2]
[376041265,1753834247853,-400.0,0.00017152,2]
[376041268,1753834247862,-744.7,0.00017152,2]
[376041269,1753834247873,-400.0,0.00017152,2]
[376041272,1753834247883,-400.0,0.00017152,2]
[376041273,1753834247894,-727.12,0.00017152,2]
[376041276,1753834247903,-400.0,0.00017152,2]
[376041278,1753834247913,-312.49,0.00017152,2]
[376041279,1753834247922,-516.59,0.00017152,2]
[376041281,1753834247932,-668.07,0.00017152,2]
[376041283,1753834247942,-400.0,0.00017152,2]
[376041285,1753834247952,-400.0,0.00017152,2]
[376041287,1753834247961,-547.96,0.00017152,2]
[376041290,1753834247971,-400.0,0.00017152,2]
[376041291,1753834247981,-400.0,0.00017152,2]
[376041294,1753834247991,-400.0,0.00017152,2]
[376041296,1753834248001,-400.0,0.00017152,2]
[376041297,1753834248010,-400.0,0.00017152,2]
[376041300,1753834248019,-527.81,0.00017152,2]
[376041302,1753834248029,-400.0,0.00017152,2]
[376041303,1753834248039,-400.0,0.00017152,2]
[376041305,1753834248049,-400.0,0.00017152,2]
[376041307,1753834248058,-400.22,0.00017152,2]
[376041309,1753834248068,-516.05,0.00017152,2]
[376041311,1753834248078,-550.6,0.00017152,2]
[376041313,1753834248087,-181.7745783,0.00017152,2]
[376041315,1753834248097,-400.0,0.00017152,2]
[376041317,1753834248106,-462.56,0.00017152,2]
[376041319,1753834248115,-400.0,0.00017152,2]
[376041321,1753834248125,-400.0,0.00017152,2]
[376041323,1753834248134,-400.0,0.00017152,2]
[376041325,1753834248144,-400.0,0.00017152,2]
[376041327,1753834248154,-400.0,0.00017152,2]
[376041329,1753834248163,-400.0,0.00017152,2]
[376041331,1753834248173,-400.0,0.00017152,2]
[376041333,1753834248182,-430.12,0.00017152,2]
[376041335,1753834248197,-569.28,0.00017152,2]
[376041337,1753834248208,-400.0,0.00017152,2]
[376041339,1753834248226,-400.0,0.00017152,2]
[376041341,1753834248236,-400.0,0.00017152,2]
[376041343,1753834248246,-400.0,0.00017152,2]
[376041345,1753834248255,-400.0,0.00017152,2]
[376041347,1753834248265,-400.0,0.00017152,2]
[376041349,1753834248275,-400.0,0.00017152,2]
[376041351,1753834248284,-400.0,0.00017152,2]
[376041353,1753834248294,-400.0,0.00017152,2]
[376041355,1753834248304,-433.85,0.00017152,2]
[376041357,1753834248313,-400.0,0.00017152,2]
[376041359,1753834248323,-400.0,0.00017152,2]
[376041361,1753834248332,-671.29,0.00017152,2]
[376041363,1753834248341,-400.0,0.00017152,2]
[376041365,1753834248351,-400.0,0.00017152,2]
[376041367,1753834248360,-450.14,0.00017152,2]
[376041369,1753834248370,-400.0,0.00017152,2]
[376041371,1753834248379,-577.34,0.00017152,2]
[376041373,1753834248388,-672.66,0.00017152,2]
[376041375,1753834248397,-404.24,0.00017152,2]
[376041377,1753834248406,-400.0,0.00017152,2]
[376041379,1753834248416,-400.0,0.00017152,2]
[376041381,1753834248426,-812.4,0.00017152,2]
[376041383,1753834248436,-574.09,0.00017152,2]
[376041385,1753834248445,-400.0,0.00017152,2]
[376041387,1753834248455,-429.03,0.00017152,2]
[376041389,1753834248464,-512.64,0.00017152,2]
[376041391,1753834248474,-400.0,0.00017152,2]
[376041393,1753834248483,-673.2,0.00017152,2]
[376041395,1753834248494,-342.99,0.00017152,2]
[376041397,1753834248508,-400.0,0.00017152,2]
[376041399,1753834248518,-400.0,0.00017152,2]
[376041401,1753834248527,-601.13,0.00017152,2]
[376041403,1753834248537,-426.29,0.00017152,2]
[376041405,1753834248547,-400.0,0.00017152,2]
[376041407,1753834248556,-1273.73,0.00017152,2]
[376041409,1753834248566,-558.44,0.00017152,2]
[376041411,1753834248575,-400.0,0.00017152,2]
[376041413,1753834248585,-647.08,0.00017152,2]
[376041415,1753834248594,-529.52,0.00017152,2]
[376041417,1753834248603,-400.0,0.00017152,2]
[376041419,1753834248615,-402.18,0.00017152,2]
[376041421,1753834248625,-400.0,0.00017152,2]
[376041423,1753834248634,-400.0,0.00017152,2]
[376041425,1753834248643,-698.65,0.00017152,2]
[376041427,1753834248652,-489.36,0.00017152,2]
[376041429,1753834248662,-458.67,0.00017152,2]
[376041431,1753834248671,-400.0,0.00017152,2]
[376041433,1753834248681,-664.94,0.00017152,2]
[376041435,1753834248690,-309.72,0.00017152,2]
[376041437,1753834248700,-400.0,0.00017152,2]
[376041439,1753834248710,-400.0,0.00017152,2]
[376041441,1753834248719,-1320.78,0.00017152,2]
[376041443,1753834248728,-674.32,0.00017152,2]
[376041445,1753834248738,-400.0,0.00017152,2]
[376041447,1753834248747,-400.0,0.00017152,2]
[376041449,1753834248756,-400.0,0.00017152,2]
[376041451,1753834248766,-467.21172964,0.00017152,2]
[376041453,1753834248777,-400.0,0.00017152,2]
[376041455,1753834248786,-400.0,0.00017152,2]
[376041457,1753834248796,-459.06,0.00017152,2]
[376041459,1753834248805,-682.26,0.00017152,2]
[376041461,1753834248815,-554.19,0.00017152,2]
[376041463,1753834248824,-645.62,0.00017152,2]
[376041465,1753834248834,-400.0,0.00017152,2]
[376041467,1753834248843,-400.0,0.00017152,2]
[376041469,1753834248853,-400.0,0.00017152,2]
[376041471,1753834248863,-400.0,0.00017152,2]
[376041473,1753834248872,-514.94,0.00017152,2]
[376041475,1753834248882,-513.25,0.00017152,2]
[376041477,1753834248891,-400.0,0.00017152,2]
[376041479,1753834248901,-400.0,0.00017152,2]
[376041481,1753834248911,-400.0,0.00017152,2]
[376041483,1753834248921,-1308.0,0.00017152,2]
[376041485,1753834248931,-527.53,0.00017152,2]
[376041487,1753834248942,-1735.22,0.00017152,2]
[376041489,1753834248952,-400.0,0.00017152,2]
[376041491,1753834248962,-400.0,0.00017152,2]
[376041493,1753834248972,-573.77,0.00017152,2]
[376041495,1753834248987,-400.0,0.00017152,2]
[376041497,1753834249006,-400.0,0.00017152,2]
[376041499,1753834249016,-1533.79,0.00017152,2]
[376041501,1753834249026,-5009.02071822,0.00017152,2]
[376041504,1753834249052,-704.90172732,0.00017152,2]
[376041507,1753834249063,-1726.00720309,0.00017152,2]
[376041509,1753834249074,-4377.84293225,0.00017152,2]
[376041511,1753834249086,-375.1724058,0.00017152,2]
[376041514,1753834249105,-482.95393801,0.00017152,2]
[376041516,1753834249117,-254.3252706,0.00017152,2]
[376041569,1753834249747,-400.0,0.00016604,2]
[376041571,1753834249756,-210.58,0.00016877,3]
[376041621,1753834250248,-347.14482896,0.00016603,2]
[376041633,1753834250360,-52.85517104,0.00016603,2]
[376041635,1753834250370,-377.42,0.00016877,3]
[376041637,1753834250380,-588.0,0.00016877,3]
[376041639,1753834250391,-203.0,0.00016877,2]
[376041641,1753834250401,-400.0,0.00016878,2]
[376041644,1753834250410,-400.0,0.00017152,2]
[376041645,1753834250420,-67.85722231,0.00017152,2]
[376041818,1753834293158,150.0,0.00020537,120]
[376041819,1753834300818,-164.03439786,0.00017753,30]
[376041820,1753834300856,-164.03439787,0.00017945,30]
[376041821,1753834300890,-164.03439786,0.00017945,30]
[376041822,1753834300924,-164.03439786,0.00017945,30]
[376041823,1753834356819,-182.12453,0.00019,30]
[376041824,1753834410544,150.0,0.00021939,120]
[376041825,1753834470587,150.0,0.0002701,120]
[376041826,1753834530630,150.0,0.00026484,120]
[376041828,1753834590249,-440.83931926,0.00015731,2]
[376041830,1753834651410,150.0,0.0002244,120]
[376041831,1753834663680,500.0,0.00015164,2]
[376041832,1753834690269,500.0,0.00015164,2]
[376041835,1753834863863,151.02,0.00015508,2]
[376041837,1753834915580,500.0,0.00015164,2]
[376041838,1753835010902,150.0,0.00024876,120]
[376041840,1753835022866,170.92,0.00013699,2]
[376041842,1753835278605,510.0,0.00014731,2]
[376041843,1753835430573,150.0,0.00021615,120]
[376041850,1753835431906,-245.79,0.00015854,2]
[376041851,1753835431917,-936.1099999,0.00015857,2]
[376041852,1753835432028,-63.8900001,0.00015857,2]
[376041853,1753835432038,-171.48,0.00015869,2]
[376041854,1753835432047,-150.68,0.0001596,2]
[376041855,1753835432057,-895.41,0.00015963,2]
[376041856,1753835432067,-316.48,0.00016039,2]
[376041857,1753835432076,-200.0,0.00016169,2]
[376041858,1753835432085,-510.0,0.0001624,3]
[376041859,1753835432095,-1082.74308748,0.00016503,2]
[376041860,1753835432107,-1170.74968369,0.00016503,2]
[376041861,1753835432116,-1200.0,0.00016503,2]
[376041862,1753835432126,-300.0,0.00016503,2]
[376041863,1753835432135,-740.85031631,0.00016504,2]
[376041865,1753835432147,-2353.4,0.00016504,2]
[376041989,1753835437828,-1130.33042089,0.00016504,2]
[376041990,1753835437838,-411.3251,0.00016504,2]
[376041991,1753835437847,-1276.67717511,0.00016504,2]
[376041992,1753835437970,-1798.86803424,0.00016504,2]
[376042128,1753835439781,-274.27211178,0.00016504,2]
[376042140,1753835439891,-477.0193291,0.00016504,2]
[376042750,1753835446070,-588.0,0.00016503,3]
[376042752,1753835446080,-36815.26380339,0.00016504,2]
[376042878,1753835490919,150.0,0.00022672,120]
[376042879,1753835504075,-298.69815309,0.00016504,2]
[376042880,1753835549027,524.0,0.00014731,2]
[376042881,1753835550591,150.0,0.00026969,120]
[376042882,1753835618471,4000.0,0.00027397,120]
[376042883,1753835633951,4187.0,0.00027397,120]
[376042885,1753835790554,150.0,0.00027397,120]
[376042886,1753836019967,922.0,0.00027397,120]
[376042888,1753836069277,-331.21938251,0.000156,2]
[376042889,1753836072614,-116.48061749,0.000156,2]
[376042890,1753836281792,161.0,0.000273,120]
[376042891,1753836299216,510.0,0.00014749,2]
[376042892,1753836337965,160.0,0.000155,2]
[376042893,1753836394991,-239.8,0.00015544,2]
[376042906,1753836596826,-232.4535112,0.00015549,2]
[376042907,1753836601585,-191.97121094,0.00015549,2]
[376042908,1753836605783,-252.4022002,0.00015549,2]
[376042909,1753836607467,-323.17307766,0.00015549,2]